bitfinex/quotes_ETHUSD_20251126
["timestamp","ask_amount","ask_price","bid_price","bid_amount"]
[1764149059848,0.0012,2918.0,2917.9,4.72731486]
[1764149060549,0.0012,2918.0,2917.9,4.51031486]
[1764149060715,0.0012,2918.0,2917.9,4.72731486]
[1764149062751,0.0012,2918.0,2917.9,4.51031486]
[1764149062965,0.0012,2918.0,2917.9,3.88102224]
[1764149066966,0.069,2918.0,2917.9,3.42712224]
[1764149067476,0.069,2918.0,2917.7,6.85471432]
[1764149067634,0.0048,2917.9,2917.7,6.85471432]
[1764149068726,0.0012,2918.0,2917.7,6.85471432]
[1764149070763,0.0012,2918.0,2917.9,0.4539]
[1764149071161,0.0012,2918.0,2917.9,0.98017122]
[1764149071469,0.0012,2918.0,2917.9,4.37302224]
[1764149072138,0.0012,2918.0,2917.9,3.88102224]
[1764149072338,0.0012,2918.0,2917.9,4.59002224]
[1764149072542,0.0012,2918.0,2917.9,4.62429346]
[1764149072751,0.0012,2918.0,2917.9,4.59002224]
[1764149074047,0.0012,2918.0,2917.9,3.88102224]
[1764149074247,0.0012,2918.0,2917.9,4.09802224]
[1764149074956,0.0012,2918.0,2917.9,3.88102224]
[1764149075342,0.0699,2918.0,2917.9,3.42712224]
[1764149075669,0.0699,2918.0,2917.8,6.8544762]
[1764149075964,0.0012,2918.0,2917.8,6.8544762]
[1764149076435,0.0012,2918.0,2917.9,0.4539]
[1764149077064,0.0012,2918.0,2917.8,6.8544762]
[1764149078174,0.0012,2918.0,2917.9,0.4539]
[1764149078380,0.0012,2918.0,2917.9,3.6307]
[1764149079075,0.0012,2918.0,2917.9,3.1387]
[1764149079584,0.0012,2918.0,2917.9,6.56582224]
[1764149079893,0.4557,2918.0,2917.9,2.6848]
[1764149080051,0.4557,2918.0,2917.9,6.11192224]
[1764149080981,0.0012,2918.0,2917.9,7.05782224]
[1764149083497,0.0012,2918.0,2917.9,6.11192224]
[1764149084150,0.0012,2918.0,2917.9,6.56582224]
[1764149084591,0.0004,2918.0,2917.9,6.56582224]
[1764149085186,0.32047352,2918.0,2917.9,7.02752224]
[1764149085386,0.0004,2918.0,2917.9,7.02752224]
[1764149086092,0.32047248,2918.0,2917.9,7.02752224]
[1764149086294,0.0004,2918.0,2917.9,7.02752224]
[1764149086831,0.0004,2918.0,2917.9,7.24452224]
[1764149090391,0.0004,2918.0,2917.9,7.02752224]
[1764149090591,0.0004,2918.0,2917.9,7.24452224]
[1764149090828,0.0004,2918.0,2917.9,6.32892224]
[1764149090829,0.0551,2918.0,2917.9,6.32892224]
[1764149091238,0.0004,2918.0,2917.9,6.78122224]
[1764149091848,0.0004,2918.0,2917.9,7.24292224]
[1764149094244,0.0004,2918.0,2917.9,5.28371635]
[1764149096156,0.0004,2918.0,2917.9,7.24812224]
[1764149097857,0.0004,2918.0,2917.9,7.24912224]
[1764149100929,0.0004,2918.0,2917.9,6.57042224]
[1764149101157,0.0551,2918.0,2917.9,6.11812224]
[1764149102636,0.5103,2918.0,2917.9,6.11812224]
[1764149103334,0.0551,2918.0,2917.9,6.11812224]
[1764149106197,0.5103,2918.0,2917.9,6.11812224]
[1764149107189,0.0551,2918.0,2917.9,6.11812224]
[1764149107410,0.5103,2918.0,2917.9,6.11812224]
[1764149109159,0.5103,2918.0,2917.9,3.42812224]
[1764149109364,0.5095,2918.0,2917.9,3.42812224]
[1764149110495,0.5095,2918.0,2917.9,0.001]
[1764149110808,3.61028368,2918.0,2917.9,0.001]
[1764149111110,11.51593291,2918.0,2917.8,0.001]
[1764149111314,3.10078368,2917.7,2917.6,0.001]
[1764149111606,3.69216823,2917.7,2917.6,0.001]
[1764149111806,4.14736823,2917.7,2917.6,0.001]
[1764149112007,5.60967825,2917.7,2917.6,0.001]
[1764149112774,9.03703541,2917.7,2917.6,0.001]
[1764149112974,9.03703541,2917.7,2917.5,0.001]
[1764149112975,1.13109811,2917.6,2917.5,0.001]
[1764149113175,2.68309857,2917.6,2917.5,0.001]
[1764149113388,2.68309857,2917.6,2916.2,0.01]
[1764149113389,3.10078368,2917.3,2916.2,0.01]
[1764149113568,3.47496823,2917.3,2916.7,3.42853034]
[1764149113767,3.93016823,2917.3,2916.7,3.42853034]
[1764149114983,1.45188855,2917.3,2916.5,3.16997968]
[1764149115799,0.7262,2917.3,2917.0,0.001]
[1764149121621,1.131704,2917.3,2917.0,0.001]
[1764149121780,4.55257779,2917.3,2917.0,0.001]
[1764149121976,7.98040489,2917.3,2917.0,0.001]
[1764149122206,8.29838803,2917.3,2917.0,0.001]
[1764149122615,5.60310835,2917.3,2917.0,0.001]
[1764149123711,2.17528125,2917.3,2917.0,0.001]
[1764149126885,1.85729811,2917.3,2917.0,0.001]
[1764149127810,1.64029811,2917.3,2917.0,0.001]
[1764149128114,2.17517557,2917.3,2917.0,0.001]
[1764149130346,1.50297557,2917.3,2917.0,0.001]
[1764149130491,1.71997557,2917.3,2917.0,0.001]
[1764149130892,1.85949811,2917.3,2917.0,0.001]
[1764149131188,1.85949811,2917.3,2917.2,0.4586]
[1764149131189,0.72559411,2917.3,2917.2,0.4586]
[1764149131394,0.94259411,2917.3,2917.2,0.001]
[1764149131625,1.03389411,2917.3,2917.2,0.001]
[1764149132324,1.48799411,2917.3,2917.2,0.001]
[1764149132701,1.03389411,2917.3,2917.2,0.001]
[1764149134004,1.03309411,2917.3,2917.2,0.001]
[1764149134606,0.94179411,2917.3,2917.2,0.4586]
[1764149135529,1.03669411,2917.3,2917.2,0.001]
[1764149137326,1.35567977,2917.3,2917.2,0.001]
[1764149138294,2.21168377,2917.3,2917.2,0.001]
[1764149138895,5.63951087,2917.3,2917.2,0.001]
[1764149139103,6.37475771,2917.3,2917.2,0.001]
[1764149140536,9.7422837,2917.3,2917.2,0.001]
[1764149141432,10.65783872,2917.3,2917.2,0.001]
[1764149141635,7.23001162,2917.3,2917.2,0.001]
[1764149142923,10.65783872,2917.3,2917.2,0.001]
[1764149144417,10.79526058,2917.3,2917.2,0.001]
[1764149144619,10.12657535,2917.3,2917.2,0.001]
[1764149144813,10.66430703,2917.3,2917.2,0.001]
[1764149145019,7.23647993,2917.3,2917.2,0.001]
[1764149145220,6.32092491,2917.3,2917.2,0.001]
[1764149145415,9.74875201,2917.3,2917.2,0.001]
[1764149145613,10.66430703,2917.3,2917.2,0.001]
[1764149147306,7.23647993,2917.3,2917.2,0.001]
[1764149147721,6.69874825,2917.3,2917.2,0.001]
[1764149148960,10.12657535,2917.3,2917.2,0.001]
[1764149150434,10.12857535,2917.3,2917.2,0.001]
[1764149152543,6.70074825,2917.3,2917.2,0.001]
[1764149153154,10.12857535,2917.3,2917.2,0.001]
[1764149154336,9.21302033,2917.3,2917.2,0.001]
[1764149154949,9.21384434,2917.3,2917.2,0.001]
[1764149158676,2.41967648,2917.3,2917.2,0.001]
[1764149158842,5.33471724,2917.3,2917.2,0.001]
[1764149159147,5.20089538,2917.3,2917.2,0.001]
[1764149160241,5.20439538,2917.3,2917.2,0.001]
[1764149162047,5.10239538,2917.3,2917.2,0.4861]
[1764149162245,1.05705651,2917.3,2917.2,0.9454]
[1764149162477,0.32180967,2917.3,2917.2,0.9454]
[1764149162679,0.32180967,2917.3,2917.2,4.3733446]
[1764149166400,0.002,2917.3,2917.2,4.3733446]
[1764149167513,0.002,2917.3,2917.2,7.0733446]
[1764149167698,0.407504,2917.3,2917.2,3.1861]
[1764149168080,0.002,2917.3,2917.2,7.0893446]
[1764149168274,0.002,2917.3,2917.2,3.1861]
[1764149168479,0.002,2917.3,2917.2,3.6614]
[1764149169495,0.3211846,2917.3,2917.2,3.1861]
[1764149169819,0.7266886,2917.3,2917.2,3.1861]
[1764149170167,0.7995886,2917.3,2917.2,2.701]
[1764149171693,0.7266886,2917.3,2917.2,2.701]
[1764149172088,0.7266886,2917.3,2917.2,3.1968]
[1764149173400,0.7266886,2917.3,2917.2,0.5068]
[1764149175781,0.7266886,2917.3,2917.2,0.9774]
[1764149176088,0.7266886,2917.3,2917.2,4.4053446]
[1764149176287,0.9436886,2917.3,2917.2,4.4053446]
[1764149176779,0.9436886,2917.3,2917.2,0.9774]
[1764149177408,0.9436886,2917.3,2917.2,4.4053446]
[1764149177902,0.002,2917.3,2917.2,4.4053446]
[1764149178997,0.002,2917.3,2917.2,0.9774]
[1764149179214,0.002,2917.3,2917.2,4.4053446]
[1764149179393,0.002,2917.3,2917.2,7.0953446]
[1764149183414,0.0012,2917.3,2917.2,7.0953446]
[1764149186413,0.0871,2917.3,2917.2,2.701]
[1764149187118,0.40623634,2917.3,2917.2,2.701]
[1764149187415,0.0871,2917.3,2917.2,2.701]
[1764149187616,0.81174034,2917.3,2917.2,2.701]
[1764149187823,1.27114034,2917.3,2917.2,2.701]
[1764149187999,2.00711957,2917.3,2917.2,2.701]
[1764149188384,1.54771957,2917.3,2917.2,2.701]
[1764149189708,1.46181957,2917.3,2917.2,2.701]
[1764149190064,0.81544034,2917.3,2917.2,2.701]
[1764149190231,0.94284034,2917.3,2917.2,3.6341]
[1764149191290,0.94284034,2917.3,2917.2,0.4735]
[1764149191492,0.94346747,2917.3,2917.2,0.4735]
[1764149192220,0.94346747,2917.3,2917.2,0.9441]
[1764149193190,0.53796347,2917.3,2917.2,4.3720446]
[1764149193409,0.32096347,2917.3,2917.2,7.0620446]
[1764149193686,0.0012,2917.3,2917.2,7.0620446]
[1764149197936,0.0012,2917.3,2917.2,6.9801446]
[1764149200735,0.0012,2917.3,2917.2,4.2901446]
[1764149200949,0.0012,2917.3,2917.2,9.6096285]
[1764149201238,0.002,2917.6,2917.4,0.4625]
[1764149201405,0.002,2917.6,2917.5,0.4625]
[1764149201606,0.002,2917.6,2917.5,0.9331]
[1764149201837,0.002,2917.6,2917.5,1.07044259]
[1764149202635,0.002,2917.6,2917.5,0.9331]
[1764149203139,0.002,2917.6,2917.5,4.36069211]
[1764149203509,0.002,2917.6,2917.5,6.99017601]
[1764149203705,0.002,2918.2,2917.5,12.91226023]
[1764149203919,0.002,2918.2,2917.9,3.0919839]
[1764149204320,0.002,2918.2,2917.9,3.5736839]
[1764149204538,0.002,2918.2,2917.9,3.71100103]
[1764149205059,0.002,2918.2,2917.9,7.13812327]
[1764149208138,0.0012,2918.0,2917.9,7.13812327]
[1764149209048,0.0012,2918.0,2917.9,4.50863937]
[1764149213365,0.0012,2918.0,2917.9,7.13812327]
[1764149214078,0.0012,2918.0,2917.9,4.02693937]
[1764149214228,0.0012,2918.0,2917.9,4.37132224]
[1764149214836,0.002,2918.3,2917.9,4.37132224]
[1764149215037,0.13932703,2919.7,2917.9,4.37132224]
[1764149215038,0.002,2919.7,2919.2,2.6294839]
[1764149215274,0.002,2919.7,2919.6,0.6442]
[1764149215480,0.002,2919.7,2919.6,1.1259]
[1764149215759,0.0621,2919.7,2919.2,0.4081]
[1764149215960,0.0621,2919.7,2919.3,0.4817]
[1764149216140,0.0621,2919.7,2919.3,1.1666]
[1764149216338,0.002,2919.7,2919.3,1.1666]
[1764149216667,0.002,2919.7,2919.6,0.4531]
[1764149217767,0.0621,2919.7,2919.5,3.42524404]
[1764149217944,0.002,2919.7,2919.5,3.42524404]
[1764149219768,0.002,2919.7,2919.6,0.9348]
[1764149220777,0.002,2919.7,2919.6,0.4531]
[1764149220950,0.4735,2919.7,2919.4,6.85060938]
[1764149221536,0.4735,2919.7,2918.6,3.42626333]
[1764149221537,0.4893,2919.6,2918.5,3.42637142]
[1764149221774,0.405504,2919.5,2918.6,3.42630028]
[1764149221937,0.0601,2918.7,2918.6,3.42630028]
[1764149222581,0.5467,2918.7,2918.6,3.42630028]
[1764149223640,0.5467,2918.7,2918.2,6.85353984]
[1764149223860,0.4866,2918.7,2918.2,6.85353984]
[1764149228691,0.4866,2918.7,2918.2,7.34963984]
[1764149229384,0.1983,2918.8,2918.2,6.85353984]
[1764149229588,0.1983,2918.8,2918.3,0.4961]
[1764149230086,0.1983,2918.8,2918.2,9.54353984]
[1764149230087,0.0546,2918.4,2918.2,9.54353984]
[1764149232084,0.458,2918.3,2917.9,0.001]
[1764149232392,0.4543,2918.0,2917.9,0.001]
[1764149232595,0.4543,2918.0,2917.9,3.42812224]
[1764149232792,0.5505,2918.0,2917.9,0.001]
[1764149232992,0.5497,2918.0,2917.9,0.001]
[1764149240120,0.002,2918.7,2917.9,0.4574]
[1764149240284,0.217,2918.6,2918.1,0.4564]
[1764149240615,0.6698,2918.6,2918.0,3.42700479]
[1764149240785,0.405504,2918.5,2918.0,3.42700479]
[1764149241199,0.858304,2918.5,2918.0,3.92690479]
[1764149241886,0.217,2918.6,2918.0,7.35390958]
[1764149242090,0.217,2918.6,2918.5,0.4564]
[1764149242295,0.002,2918.7,2918.5,3.88281768]
[1764149242501,0.002,2918.7,2918.6,0.4564]
[1764149244020,0.002,2918.7,2918.6,0.9563]
[1764149244324,0.002,2918.7,2918.6,4.38260028]
[1764149245728,0.1062,2918.7,2918.2,3.92658491]
[1764149246021,0.4502,2918.6,2918.2,7.35335483]
[1764149246593,0.4502,2918.6,2918.3,0.4999]
[1764149246803,0.5579,2918.6,2918.2,3.42668491]
[1764149247409,0.5579,2918.6,2918.2,6.85345483]
[1764149247605,0.4502,2918.6,2918.3,2.69]
[1764149248021,0.4502,2918.6,2918.3,3.1899]
[1764149248221,0.4502,2918.6,2918.3,2.69]
[1764149248629,0.4502,2918.6,2918.3,6.11660253]
[1764149248828,0.1077,2918.6,2918.3,2.69]
[1764149249143,0.4515,2918.4,2918.3,2.69]
[1764149250825,0.4515,2918.4,2918.3,6.1166525]
[1764149251031,0.217,2918.6,2918.3,6.5730525]
[1764149251209,0.217,2918.6,2918.3,3.1464]
[1764149251405,0.217,2918.6,2918.5,0.4564]
[1764149252219,0.217,2918.6,2918.3,6.61653794]
[1764149252535,0.3221,2918.6,2918.3,2.69]
[1764149252735,0.3221,2918.6,2918.3,6.11662517]
[1764149252925,0.3221,2918.6,2918.3,6.11659914]
[1764149253125,0.3221,2918.6,2918.3,2.69]
[1764149253732,0.3221,2918.6,2918.1,2.69]
[1764149253733,0.0045,2918.4,2918.1,2.69]
[1764149253937,2.69438583,2918.5,2918.1,2.69]
[1764149254143,0.1051,2918.2,2918.1,2.69]
[1764149254331,0.1051,2918.2,2918.1,6.11688735]
[1764149254531,0.1051,2918.2,2918.0,0.001]
[1764149254532,0.5544,2918.2,2918.0,0.001]
[1764149254843,2.69888583,2918.1,2918.0,0.001]
[1764149255041,0.0045,2918.1,2918.0,0.001]
[1764149255248,0.4573,2918.1,2918.0,0.001]
[1764149256044,0.862804,2918.1,2918.0,0.001]
[1764149256944,1.079804,2918.1,2918.0,0.001]
[1764149257752,1.079004,2918.1,2918.0,0.001]
[1764149258146,3.77338983,2918.1,2918.0,0.001]
[1764149259417,4.09261254,2918.1,2918.0,0.001]
[1764149261119,1.39822671,2918.1,2918.0,0.001]
[1764149261629,4.09261254,2918.1,2918.0,0.001]
[1764149264649,4.81820665,2918.1,2918.0,0.001]
[1764149266554,4.81799785,2918.1,2918.0,0.001]
[1764149269040,4.14819785,2918.1,2918.0,0.001]
[1764149269255,4.36519785,2918.1,2918.0,0.001]
[1764149270744,4.85099785,2918.1,2918.0,0.001]
[1764149271255,4.85299785,2918.1,2918.0,0.001]
[1764149273056,4.63584761,2918.1,2918.0,0.001]
[1764149273244,4.85284761,2918.1,2918.0,0.001]
[1764149275375,4.85294164,2918.1,2918.0,0.001]
[1764149277274,0.9434617,2918.1,2918.0,0.4612]
[1764149277777,1.0151617,2918.1,2918.0,0.001]
[1764149279380,1.01535911,2918.1,2918.0,0.001]
[1764149279874,3.70974494,2918.1,2918.0,0.001]
[1764149280383,4.19144494,2918.1,2918.0,0.001]
[1764149281043,3.97444494,2918.1,2918.0,0.001]
[1764149281249,4.19144494,2918.1,2918.0,0.001]
[1764149281990,8.3439264,2918.1,2918.0,0.001]
[1764149282482,4.55219393,2918.1,2918.0,0.001]
[1764149284289,4.15593482,2918.1,2918.0,0.001]
[1764149284462,4.77843882,2918.1,2918.0,0.001]
[1764149286272,4.77843882,2918.1,2918.0,0.4561]
[1764149288314,4.77843882,2918.1,2918.0,0.001]
[1764149288468,5.51094034,2918.1,2918.0,0.001]
[1764149288799,8.14255927,2918.1,2918.0,0.001]
[1764149289676,8.14505927,2918.1,2918.0,0.001]
[1764149289878,4.71817192,2918.1,2918.0,0.001]
[1764149290195,8.14505927,2918.1,2918.0,0.001]
[1764149292006,5.51544034,2918.1,2918.0,0.001]
[1764149292206,2.08605299,2918.1,2918.0,0.4561]
[1764149293014,2.08605299,2918.1,2918.0,0.001]
[1764149293322,1.86905299,2918.1,2918.0,0.001]
[1764149293523,2.08605299,2918.1,2918.0,0.001]
[1764149296600,5.51294034,2918.1,2918.0,0.001]
[1764149296805,2.08605299,2918.1,2918.0,0.001]
[1764149297815,5.51294034,2918.1,2918.0,0.001]
[1764149298012,5.51544034,2918.1,2918.0,0.001]
[1764149298419,2.08605299,2918.1,2918.0,0.001]
[1764149298729,5.51294034,2918.1,2918.0,0.001]
[1764149300432,2.08605299,2918.1,2918.0,0.001]
[1764149300609,2.08605299,2918.1,2918.0,0.4707]
[1764149302124,1.36045888,2918.1,2918.0,0.4707]
[1764149303399,1.36045888,2918.1,2918.0,0.959]
[1764149304298,1.36045888,2918.1,2918.0,0.4707]
[1764149305407,4.78734623,2918.1,2918.0,0.001]
[1764149305808,5.51294034,2918.1,2918.0,0.001]
[1764149307102,5.51214034,2918.1,2918.0,0.001]
[1764149309729,5.83210118,2918.1,2918.0,0.001]
[1764149311818,5.96947867,2918.1,2918.0,0.001]
[1764149312340,6.14917867,2918.1,2918.0,0.001]
[1764149315046,5.96947867,2918.1,2918.0,0.001]
[1764149316446,5.96947867,2918.1,2918.0,0.959]
[1764149316447,0.53896084,2918.1,2918.0,0.959]
[1764149317216,0.32196084,2918.1,2918.0,0.959]
[1764149317417,0.53896084,2918.1,2918.0,0.959]
[1764149318417,0.32196084,2918.1,2918.0,0.959]
[1764149318614,0.53896084,2918.1,2918.0,0.959]
[1764149321728,0.32196084,2918.1,2918.0,0.959]
[1764149321928,0.53896084,2918.1,2918.0,0.959]
[1764149322645,5.0969463,2918.1,2918.0,0.001]
[1764149323050,1.67005895,2918.1,2918.0,0.4707]
[1764149323348,1.67005895,2918.1,2918.0,0.959]
[1764149323961,5.0969463,2918.1,2918.0,0.959]
[1764149325456,5.0969463,2918.1,2918.0,0.4707]
[1764149326354,1.67005895,2918.1,2918.0,0.4707]
[1764149326556,7.72836523,2918.1,2918.0,0.001]
[1764149326886,8.64518131,2918.1,2918.0,0.001]
[1764149327428,1.13109811,2918.0,2917.4,0.28799]
[1764149327760,0.31996084,2917.9,2917.1,3.62196047]
[1764149328054,0.31996084,2917.8,2917.1,3.62196047]
[1764149328229,0.53696084,2917.7,2917.1,7.05002258]
[1764149328430,0.217,2917.7,2917.6,0.4614]
[1764149328954,0.53662689,2917.7,2917.6,0.4614]
[1764149329548,0.53662689,2917.7,2917.6,0.9372]
[1764149331257,0.217,2917.7,2917.6,0.9372]
[1764149331752,0.2162,2917.7,2917.6,0.9372]
[1764149331943,0.217,2917.7,2917.6,0.9372]
[1764149335477,0.5366602,2917.7,2917.6,0.9372]
[1764149338280,0.5386602,2917.7,2917.6,0.9372]
[1764149339582,0.002,2918.4,2918.0,0.4614]
[1764149339881,0.002,2918.4,2918.2,0.6571]
[1764149340057,0.219,2918.3,2917.7,0.4758]
[1764149340257,0.219,2918.3,2918.2,0.4614]
[1764149340448,0.219,2918.3,2918.2,0.9372]
[1764149341676,0.4924,2918.3,2917.8,0.4758]
[1764149341872,0.4924,2918.3,2917.6,3.42737765]
[1764149342075,0.962,2918.3,2917.7,0.4758]
[1764149342399,0.405504,2918.2,2917.7,0.4758]
[1764149342564,1.60069811,2918.2,2917.5,0.4524]
[1764149342765,0.72559411,2918.0,2917.5,0.4524]
[1764149342967,0.217,2917.9,2917.5,0.4524]
[1764149343350,0.217,2917.9,2917.5,3.87998825]
[1764149343585,0.217,2917.9,2917.6,0.4514]
[1764149343887,0.217,2917.9,2917.5,3.42858825]
[1764149344292,0.217,2917.9,2917.6,0.4514]
[1764149344903,0.217,2917.9,2917.8,0.4564]
[1764149348206,0.002,2918.3,2917.8,4.3350397]
[1764149348373,0.217,2918.2,2918.0,0.4564]
[1764149348576,0.217,2918.2,2917.9,0.4514]
[1764149348902,0.217,2918.2,2918.1,0.4564]
[1764149349400,0.002,2918.3,2918.1,0.4564]
[1764149349573,0.217,2918.2,2918.1,0.4514]
[1764149349775,0.217,2918.2,2918.1,0.6444]
[1764149349974,0.002,2918.3,2918.1,1.1008]
[1764149350308,0.219,2918.3,2918.2,0.9078]
[1764149351503,0.53875623,2918.3,2918.2,0.9078]
[1764149353269,0.53875623,2918.3,2918.2,0.4564]
[1764149353470,1.01955623,2918.3,2917.8,0.4514]
[1764149353676,0.6998,2918.3,2917.9,0.4514]
[1764149353994,0.219,2918.3,2918.2,0.6444]
[1764149354294,0.53866473,2918.3,2918.2,0.6444]
[1764149355417,0.219,2918.3,2918.2,0.6444]
[1764149356486,0.2182,2918.3,2918.2,0.4564]
[1764149358766,0.2182,2918.3,2918.2,0.9415]
[1764149359138,0.5063,2918.3,2918.0,3.1751]
[1764149359277,0.0045,2918.1,2918.0,2.69]
[1764149360480,0.0045,2918.1,2917.9,2.69]
[1764149360868,0.2836,2918.0,2917.9,2.69]
[1764149361071,0.7403,2918.0,2917.9,2.69]
[1764149361692,1.32885784,2918.0,2917.9,2.69]
[1764149361996,5.21256263,2918.0,2917.9,2.69]
[1764149362769,4.75586263,2918.0,2917.9,2.69]
[1764149362990,5.21256263,2918.0,2917.9,2.69]
[1764149364986,9.04507142,2918.0,2917.8,0.001]
[1764149365187,3.8907006,2917.9,2917.8,0.001]
[1764149365803,4.3768006,2917.9,2917.8,0.001]
[1764149366200,7.80392284,2917.9,2917.8,0.001]
[1764149371190,0.54396373,2917.9,2917.8,0.001]
[1764149371390,0.94216773,2917.9,2917.8,0.461]
[1764149371625,4.36928997,2917.9,2917.8,0.461]
[1764149371922,0.94216773,2917.9,2917.8,0.461]
[1764149372895,8.53702095,2917.9,2917.8,0.001]
[1764149373097,5.84208408,2917.9,2917.8,0.001]
[1764149373328,1.95996184,2917.9,2917.8,0.001]
[1764149373628,0.94216773,2917.9,2917.8,0.461]
[1764149373826,5.09488408,2917.9,2917.8,0.461]
[1764149374596,5.38708408,2917.9,2917.8,0.001]
[1764149375128,5.84208408,2917.9,2917.8,0.001]
[1764149376898,5.38708408,2917.9,2917.8,0.001]
[1764149378123,1.66776184,2917.9,2917.8,0.461]
[1764149378325,0.94216773,2917.9,2917.8,0.461]
[1764149379059,1.04525784,2917.9,2917.8,0.9461]
[1764149379219,0.53666373,2917.9,2917.8,0.9461]
[1764149379845,1.26225784,2917.9,2917.8,0.9461]
[1764149380720,4.98158008,2917.9,2917.8,0.001]
[1764149381314,1.55365784,2917.9,2917.8,0.001]
[1764149382030,1.26145784,2917.9,2917.8,0.001]
[1764149382844,1.26145784,2917.9,2917.8,0.461]
[1764149385358,1.26145784,2917.9,2917.8,0.9438]
[1764149385930,0.0012,2918.3,2917.8,4.3710397]
[1764149386138,0.0012,2918.3,2918.2,0.4841]
[1764149386336,0.2182,2918.3,2918.2,0.9669]
[1764149388764,0.72559411,2918.1,2917.8,0.001]
[1764149389059,0.72559411,2918.1,2917.9,0.4828]
[1764149389269,0.72559411,2918.2,2918.0,0.4841]
[1764149389764,0.72559411,2918.2,2917.9,0.4828]
[1764149389962,0.72559411,2918.2,2918.1,0.4841]
[1764149390265,0.72559411,2918.2,2918.1,0.6653]
[1764149390453,0.2182,2918.3,2918.1,1.1481]
[1764149390652,0.0012,2918.3,2918.2,0.9669]
[1764149390851,0.0012,2918.3,2918.2,7.08366992]
[1764149391161,0.002,2918.6,2918.2,14.9719332]
[1764149391484,0.002,2918.6,2918.5,3.17903687]
[1764149391845,0.002,2918.6,2918.5,3.66183687]
[1764149392164,0.002,2918.7,2918.5,3.66183687]
[1764149392372,0.002,2918.7,2918.6,0.9669]
[1764149392869,0.002,2918.7,2918.6,4.39320028]
[1764149394594,0.002,2918.7,2918.6,7.08813715]
[1764149395222,0.002,2918.7,2917.8,0.001]
[1764149395223,1.32890024,2918.4,2917.8,0.001]
[1764149395498,3.337577,2918.6,2917.5,0.001]
[1764149395499,1.13109811,2917.8,2917.5,0.001]
[1764149395665,0.405504,2917.4,2917.3,0.001]
[1764149395862,0.405504,2916.9,2915.5,0.4828]
[1764149396076,4.49233498,2916.7,2915.5,0.4828]
[1764149396366,7.65527182,2916.7,2915.5,0.4828]
[1764149396675,5.20703495,2916.7,2915.5,0.4828]
[1764149396999,8.63556719,2916.7,2915.5,0.4828]
[1764149397807,7.55534784,2916.7,2915.5,0.4828]
[1764149398663,0.405504,2916.5,2915.5,0.4828]
[1764149398895,1.13109811,2916.1,2915.5,0.4828]
[1764149399075,0.218,2916.0,2915.5,0.4828]
[1764149399597,0.218,2916.0,2915.2,0.4828]
[1764149400820,0.218,2916.0,2915.1,0.001]
[1764149400821,0.575904,2915.9,2915.1,0.001]
[1764149400974,0.72559411,2915.7,2915.1,0.001]
[1764149401314,0.72559411,2915.7,2915.1,0.4838]
[1764149402274,3.42893362,2916.4,2915.1,0.4838]
[1764149402275,0.1952,2916.7,2915.6,0.4841]
[1764149402469,0.218,2916.6,2915.7,0.4841]
[1764149402709,0.94359411,2916.6,2915.7,0.4841]
[1764149402972,3.64668903,2916.6,2915.7,4.39552581]
[1764149403277,0.72559411,2916.5,2915.7,4.39552581]
[1764149403474,0.72559411,2916.5,2915.8,0.4818]
[1764149404085,0.94359411,2916.6,2915.8,0.4818]
[1764149404285,0.72559411,2916.5,2915.8,0.4818]
[1764149404713,0.218,2916.4,2915.8,0.4818]
[1764149405216,0.94359411,2916.4,2915.8,0.4818]
[1764149405401,4.37248073,2916.4,2915.8,0.4818]
[1764149405710,0.218,2916.4,2916.3,0.451]
[1764149405914,0.94279411,2916.4,2916.3,0.451]
[1764149406087,1.61349411,2916.4,2915.8,3.91238295]
[1764149406504,4.31678856,2916.4,2915.8,3.91238295]
[1764149406705,0.4274,2916.4,2915.8,3.91238295]
[1764149407018,0.4274,2916.4,2915.8,0.4828]
[1764149407322,0.4274,2916.4,2915.8,3.91238125]
[1764149407676,0.4274,2916.4,2915.9,0.4818]
[1764149408036,0.72559411,2916.6,2916.3,0.451]
[1764149408239,0.94359411,2916.5,2916.3,0.451]
[1764149408442,0.218,2916.5,2916.3,0.451]
[1764149408643,0.72559411,2916.8,2916.4,0.451]
[1764149408843,0.463,2917.1,2916.4,0.451]
[1764149409143,0.218,2917.0,2916.8,0.451]
[1764149409305,0.72559411,2916.9,2916.5,0.4818]
[1764149410046,0.218,2916.8,2916.5,0.4818]
[1764149410533,0.218,2916.8,2916.3,0.4818]
[1764149410922,0.218,2916.8,2916.7,0.451]
[1764149411927,0.218,2916.8,2916.7,0.9328]
[1764149412117,4.29651824,2917.2,2916.7,0.9328]
[1764149412118,0.405504,2917.1,2916.7,0.9328]
[1764149412303,0.218,2917.0,2916.8,0.4818]
[1764149412716,0.218,2917.0,2916.9,0.451]
[1764149414105,0.218,2917.0,2916.9,0.9409]
[1764149414316,0.218,2917.0,2916.9,0.451]
[1764149414522,0.94359411,2917.0,2916.8,2.69]
[1764149415338,0.218,2916.9,2916.8,2.69]
[1764149415747,1.16569411,2916.9,2916.8,2.69]
[1764149416065,0.4401,2916.9,2916.8,2.69]
[1764149416286,1.13109811,2916.8,2916.6,2.69]
[1764149416565,0.689004,2916.7,2916.6,2.69]
[1764149417472,4.11753624,2916.7,2916.6,2.69]
[1764149418465,4.84313035,2916.7,2916.6,2.69]
[1764149418665,1.00909411,2916.7,2916.6,2.69]
[1764149418971,1.22709411,2916.7,2916.6,2.69]
[1764149419870,0.72559411,2916.6,2916.2,2.69]
[1764149420172,0.72559411,2916.6,2916.2,3.1799]
[1764149420372,1.18059411,2916.6,2916.2,2.69]